[Event "Titled Tuesday Blitz April 05 Early 2022"]
[White "Samarth, J Rao"]
[Black "Chernomordik, Pavel"]
[WhiteFideId "46652370"]
[BlackFideId "2804530"]
[WhiteElo "1514"]
[BlackElo "2220"]
[Result "1-0"]
[Round "04"]
[TimeControl "180+1"]
[Date "2022.04.05"]
[WhiteClock "0:00:11"]
[BlackClock "0:00:47"]

1. c4 {[%clk 0:02:50]}  g6 {[%clk 0:02:58]} 2. d4 {[%clk 0:02:50]}  Bg7 {[%clk 0:02:58]} 3. e4 {[%clk 0:02:50]}  Nc6 {[%clk 0:02:57]} 4. Nf3 {[%clk 0:02:50]}  d6 {[%clk 0:02:57]} 5. d5 {[%clk 0:02:49]}  Ne5 {[%clk 0:02:56]} 6. Nxe5 {[%clk 0:02:49]}  Bxe5 {[%clk 0:02:56]} 7. f4 {[%clk 0:02:50]}  Bg7 {[%clk 0:02:55]} 8. Bd3 {[%clk 0:02:47]}  c6 {[%clk 0:02:54]} 9. O-O {[%clk 0:02:47]}  Qb6+ {[%clk 0:02:51]} 10. Kh1 {[%clk 0:02:44]}  Bxb2 {[%clk 0:02:49]} 11. Bxb2 {[%clk 0:02:40]}  Qxb2 {[%clk 0:02:49]} 12. Nd2 {[%clk 0:02:41]}  Nf6 {[%clk 0:02:39]} 13. Rb1 {[%clk 0:02:38]}  Qc3 {[%clk 0:02:26]} 14. Rb3 {[%clk 0:02:37]}  Qd4 {[%clk 0:02:24]} 15. Nf3 {[%clk 0:02:36]}  Qc5 {[%clk 0:02:23]} 16. e5 {[%clk 0:02:36]}  Ng4 {[%clk 0:02:23]} 17. Qe2 {[%clk 0:02:33]}  O-O {[%clk 0:02:14]} 18. e6 {[%clk 0:02:28]}  fxe6 {[%clk 0:01:59]} 19. Ng5 {[%clk 0:02:28]}  Ne3 {[%clk 0:01:58]} 20. Rf3 {[%clk 0:02:05]}  Nf5 {[%clk 0:01:48]} 21. Nxe6 {[%clk 0:02:00]}  Bxe6 {[%clk 0:01:43]} 22. Qxe6+ {[%clk 0:02:01]}  Kg7 {[%clk 0:01:43]} 23. Bxf5 {[%clk 0:01:58]}  Rxf5 {[%clk 0:01:41]} 24. Rxb7 {[%clk 0:01:50]}  Rf7 {[%clk 0:01:32]} 25. Rxe7 {[%clk 0:01:45]}  Rf8 {[%clk 0:01:31]} 26. dxc6 {[%clk 0:01:12]}  Qxc6 {[%clk 0:01:20]} 27. h4 {[%clk 0:01:00]}  Rxe7 {[%clk 0:01:16]} 28. Qxe7+ {[%clk 0:01:00]}  Rf7 {[%clk 0:01:16]} 29. Qe2 {[%clk 0:00:49]}  Rc7 {[%clk 0:01:12]} 30. Rc3 {[%clk 0:00:35]}  Rf7 {[%clk 0:01:06]} 31. Qe3 {[%clk 0:00:33]}  Qd7 {[%clk 0:00:58]} 32. Qd4+ {[%clk 0:00:31]}  Kh6 {[%clk 0:00:57]} 33. Rd3 {[%clk 0:00:12]}  Qg4 {[%clk 0:00:52]} 34. Qxd6 {[%clk 0:00:11]}  Qxh4+ {[%clk 0:00:47]} 35. Rh3 {[%clk 0:00:11]} 1-0


[Site "https://www.chess.com"]

[Event "Titled Tuesday Blitz April 05 Early 2022"]
[White "Silva, Kaua Marques"]
[Black "Delorme, Alban"]
[WhiteFideId "22701168"]
[BlackFideId "623636"]
[WhiteElo "2071"]
[BlackElo "2197"]
[Result "1-0"]
[Round "04"]
[TimeControl "180+1"]
[Date "2022.04.05"]
[WhiteClock "0:00:31"]
[BlackClock "0:00:01"]

1. d4 {[%clk 0:03:00]}  Nf6 {[%clk 0:02:59]} 2. Nc3 {[%clk 0:02:52]}  d5 {[%clk 0:02:58]} 3. Bf4 {[%clk 0:02:51]}  e6 {[%clk 0:02:37]} 4. e3 {[%clk 0:02:46]}  Bd6 {[%clk 0:02:37]} 5. Bxd6 {[%clk 0:02:44]}  Qxd6 {[%clk 0:02:36]} 6. Nf3 {[%clk 0:02:43]}  a6 {[%clk 0:02:31]} 7. Bd3 {[%clk 0:02:37]}  b6 {[%clk 0:02:26]} 8. O-O {[%clk 0:02:32]}  Bb7 {[%clk 0:02:25]} 9. Ne2 {[%clk 0:02:32]}  Nbd7 {[%clk 0:02:24]} 10. c3 {[%clk 0:02:31]}  c5 {[%clk 0:02:18]} 11. Re1 {[%clk 0:02:19]}  O-O {[%clk 0:02:11]} 12. Ng3 {[%clk 0:02:18]}  Rfe8 {[%clk 0:02:04]} 13. Qe2 {[%clk 0:02:10]}  Ne4 {[%clk 0:02:01]} 14. Nd2 {[%clk 0:02:05]}  f5 {[%clk 0:01:58]} 15. Ngf1 {[%clk 0:01:54]}  Ndf6 {[%clk 0:01:55]} 16. f3 {[%clk 0:01:47]}  Nxd2 {[%clk 0:01:50]} 17. Nxd2 {[%clk 0:01:48]}  g6 {[%clk 0:01:43]} 18. Rad1 {[%clk 0:01:38]}  Rad8 {[%clk 0:01:28]} 19. a3 {[%clk 0:01:18]}  b5 {[%clk 0:01:26]} 20. Kh1 {[%clk 0:01:15]}  c4 {[%clk 0:01:26]} 21. Bc2 {[%clk 0:01:15]}  e5 {[%clk 0:01:21]} 22. Qf2 {[%clk 0:01:13]}  exd4 {[%clk 0:01:16]} 23. exd4 {[%clk 0:01:08]}  Kf7 {[%clk 0:01:14]} 24. Kg1 {[%clk 0:01:05]}  a5 {[%clk 0:01:09]} 25. Nf1 {[%clk 0:01:00]}  b4 {[%clk 0:01:08]} 26. Ba4 {[%clk 0:01:00]}  Bc6 {[%clk 0:01:05]} 27. Bxc6 {[%clk 0:00:59]}  Qxc6 {[%clk 0:01:06]} 28. axb4 {[%clk 0:00:59]}  axb4 {[%clk 0:01:07]} 29. cxb4 {[%clk 0:01:00]}  Qd6 {[%clk 0:00:56]} 30. Qd2 {[%clk 0:00:58]}  Rb8 {[%clk 0:00:53]} 31. Rxe8 {[%clk 0:00:55]}  Kxe8 {[%clk 0:00:46]} 32. Re1+ {[%clk 0:00:52]}  Kf7 {[%clk 0:00:46]} 33. Ne3 {[%clk 0:00:41]}  Qxb4 {[%clk 0:00:43]} 34. Qxb4 {[%clk 0:00:39]}  Rxb4 {[%clk 0:00:44]} 35. Re2 {[%clk 0:00:40]}  Rb5 {[%clk 0:00:36]} 36. Nd1 {[%clk 0:00:39]}  Rb6 {[%clk 0:00:19]} 37. Nc3 {[%clk 0:00:39]}  Re6 {[%clk 0:00:19]} 38. Kf2 {[%clk 0:00:38]}  Rxe2+ {[%clk 0:00:19]} 39. Kxe2 {[%clk 0:00:39]}  Ke6 {[%clk 0:00:20]} 40. h4 {[%clk 0:00:38]}  Nh5 {[%clk 0:00:20]} 41. g4 {[%clk 0:00:37]}  fxg4 {[%clk 0:00:18]} 42. fxg4 {[%clk 0:00:38]}  Nf6 {[%clk 0:00:17]} 43. Kf3 {[%clk 0:00:37]}  h5 {[%clk 0:00:18]} 44. g5 {[%clk 0:00:34]}  Ng4 {[%clk 0:00:17]} 45. Ne2 {[%clk 0:00:34]}  Nh2+ {[%clk 0:00:02]} 46. Kg2 {[%clk 0:00:34]}  Ng4 {[%clk 0:00:03]} 47. Nf4+ {[%clk 0:00:34]}  Kd6 {[%clk 0:00:03]} 48. Kf3 {[%clk 0:00:33]}  Nh2+ {[%clk 0:00:01]} 49. Kf2 {[%clk 0:00:31]} 1-0


[Site "https://www.chess.com"]

[Event "Titled Tuesday Blitz April 05 Early 2022"]
[White "Sliwicka, Alicja"]
[Black "Shahaliyev, Ismayil"]
[WhiteFideId "1150677"]
[BlackFideId "13406388"]
[WhiteElo "2120"]
[BlackElo "2105"]
[Result "1-0"]
[Round "04"]
[TimeControl "180+1"]
[Date "2022.04.05"]
[WhiteClock "0:02:21"]
[BlackClock "0:02:33"]

1. e4 {[%clk 0:03:00]}  c5 {[%clk 0:02:59]} 2. Nf3 {[%clk 0:03:00]}  a6 {[%clk 0:03:00]} 3. c4 {[%clk 0:03:00]}  b6 {[%clk 0:02:58]} 4. d4 {[%clk 0:02:59]}  cxd4 {[%clk 0:02:58]} 5. Nxd4 {[%clk 0:03:00]}  Ra7 {[%clk 0:02:58]} 6. Nc3 {[%clk 0:02:59]}  Bb7 {[%clk 0:02:59]} 7. Be2 {[%clk 0:02:57]}  Ba8 {[%clk 0:02:59]} 8. O-O {[%clk 0:02:56]}  e6 {[%clk 0:02:57]} 9. Be3 {[%clk 0:02:54]}  Nf6 {[%clk 0:02:57]} 10. f3 {[%clk 0:02:53]}  d5 {[%clk 0:02:54]} 11. cxd5 {[%clk 0:02:47]}  exd5 {[%clk 0:02:55]} 12. e5 {[%clk 0:02:47]}  Nfd7 {[%clk 0:02:52]} 13. f4 {[%clk 0:02:37]}  Nc5 {[%clk 0:02:52]} 14. Bf3 {[%clk 0:02:35]}  Be7 {[%clk 0:02:52]} 15. Nf5 {[%clk 0:02:33]}  O-O {[%clk 0:02:46]} 16. Nxd5 {[%clk 0:02:30]}  Bxd5 {[%clk 0:02:44]} 17. Qxd5 {[%clk 0:02:29]}  Rd7 {[%clk 0:02:43]} 18. Qc4 {[%clk 0:02:23]}  b5 {[%clk 0:02:33]} 19. Nxe7+ {[%clk 0:02:21]} 1-0


[Site "https://www.chess.com"]

[Event "Titled Tuesday Blitz April 05 Early 2022"]
[White "Sychev, Klementy"]
[Black "Musovic, Armin"]
[WhiteFideId "4114060"]
[BlackFideId "939935"]
[WhiteElo "2564"]
[BlackElo "2255"]
[Result "1-0"]
[Round "04"]
[TimeControl "180+1"]
[Date "2022.04.05"]
[WhiteClock "0:00:40"]
[BlackClock "0:00:07"]

1. d4 {[%clk 0:03:00]}  d5 {[%clk 0:02:58]} 2. Nc3 {[%clk 0:03:01]}  c5 {[%clk 0:02:58]} 3. e4 {[%clk 0:03:00]}  dxe4 {[%clk 0:02:57]} 4. d5 {[%clk 0:03:00]}  a6 {[%clk 0:02:58]} 5. Nxe4 {[%clk 0:02:56]}  Nf6 {[%clk 0:02:59]} 6. Nxf6+ {[%clk 0:02:55]}  exf6 {[%clk 0:03:00]} 7. Nf3 {[%clk 0:02:54]}  Bd6 {[%clk 0:03:00]} 8. Be2 {[%clk 0:02:51]}  O-O {[%clk 0:03:01]} 9. O-O {[%clk 0:02:50]}  Re8 {[%clk 0:03:01]} 10. c4 {[%clk 0:02:49]}  Nd7 {[%clk 0:03:01]} 11. Be3 {[%clk 0:02:48]}  Nf8 {[%clk 0:03:00]} 12. Nd2 {[%clk 0:02:47]}  Ng6 {[%clk 0:03:00]} 13. Qb3 {[%clk 0:02:47]}  b6 {[%clk 0:02:46]} 14. Rfe1 {[%clk 0:02:46]}  Ra7 {[%clk 0:02:46]} 15. Bf1 {[%clk 0:02:39]}  Rae7 {[%clk 0:02:46]} 16. Nf3 {[%clk 0:02:34]}  Bg4 {[%clk 0:02:44]} 17. Be2 {[%clk 0:02:30]}  Bb8 {[%clk 0:02:42]} 18. g3 {[%clk 0:02:26]}  h5 {[%clk 0:02:38]} 19. Kg2 {[%clk 0:02:19]}  h4 {[%clk 0:02:33]} 20. Ng1 {[%clk 0:02:15]}  f5 {[%clk 0:01:47]} 21. Bxg4 {[%clk 0:02:04]}  fxg4 {[%clk 0:01:47]} 22. Qc2 {[%clk 0:01:59]}  h3+ {[%clk 0:01:25]} 23. Kf1 {[%clk 0:01:56]}  Ne5 {[%clk 0:01:08]} 24. Bg5 {[%clk 0:01:54]}  f6 {[%clk 0:01:08]} 25. Bf4 {[%clk 0:01:54]}  b5 {[%clk 0:01:06]} 26. b3 {[%clk 0:01:49]}  bxc4 {[%clk 0:01:04]} 27. bxc4 {[%clk 0:01:49]}  Bd6 {[%clk 0:01:03]} 28. Qf5 {[%clk 0:01:48]}  Qa5 {[%clk 0:01:02]} 29. Bxe5 {[%clk 0:01:34]}  Bxe5 {[%clk 0:01:02]} 30. Rad1 {[%clk 0:01:34]}  Qxa2 {[%clk 0:00:45]} 31. Qxg4 {[%clk 0:01:33]}  a5 {[%clk 0:00:35]} 32. Nxh3 {[%clk 0:01:29]}  a4 {[%clk 0:00:35]} 33. Kg2 {[%clk 0:01:26]}  a3 {[%clk 0:00:33]} 34. d6 {[%clk 0:00:50]}  f5 {[%clk 0:00:33]} 35. Qxf5 {[%clk 0:00:47]}  Rf7 {[%clk 0:00:26]} 36. d7 {[%clk 0:00:45]}  Ref8 {[%clk 0:00:25]} 37. Qxe5 {[%clk 0:00:41]}  Rxf2+ {[%clk 0:00:25]} 38. Nxf2 {[%clk 0:00:41]}  Qxf2+ {[%clk 0:00:26]} 39. Kh3 {[%clk 0:00:42]}  a2 {[%clk 0:00:09]} 40. d8=Q {[%clk 0:00:41]}  a1=Q {[%clk 0:00:09]} 41. Qxf8+ {[%clk 0:00:39]}  Qxf8 {[%clk 0:00:08]} 42. Rxa1 {[%clk 0:00:39]}  Qc8+ {[%clk 0:00:07]} 43. Qe6+ {[%clk 0:00:40]}  Kh7 {[%clk 0:00:07]} 44. Qxc8 {[%clk 0:00:40]} 1-0


[Site "https://www.chess.com"]

[Event "Titled Tuesday Blitz April 05 Early 2022"]
[White "Tan, Jun Ying"]
[Black "Gaehwiler, Gabriel"]
[WhiteFideId "5710413"]
[BlackFideId "1314530"]
[WhiteElo "1827"]
[BlackElo "2383"]
[Result "1/2-1/2"]
[Round "04"]
[TimeControl "180+1"]
[Date "2022.04.05"]
[WhiteClock "0:00:12"]
[BlackClock "0:00:17"]

1. d4 {[%clk 0:03:00]}  Nf6 {[%clk 0:02:59]} 2. c4 {[%clk 0:03:01]}  g6 {[%clk 0:02:59]} 3. Nc3 {[%clk 0:03:02]}  Bg7 {[%clk 0:03:00]} 4. e4 {[%clk 0:03:02]}  O-O {[%clk 0:03:01]} 5. Be2 {[%clk 0:03:02]}  d6 {[%clk 0:03:01]} 6. h4 {[%clk 0:03:03]}  Nc6 {[%clk 0:02:59]} 7. d5 {[%clk 0:03:00]}  Ne5 {[%clk 0:02:54]} 8. h5 {[%clk 0:02:50]}  c6 {[%clk 0:02:43]} 9. h6 {[%clk 0:02:45]}  Bh8 {[%clk 0:02:39]} 10. Nf3 {[%clk 0:02:36]}  Nxf3+ {[%clk 0:02:13]} 11. Bxf3 {[%clk 0:02:35]}  Nd7 {[%clk 0:02:14]} 12. Be2 {[%clk 0:02:30]}  a6 {[%clk 0:02:07]} 13. a4 {[%clk 0:02:24]}  a5 {[%clk 0:02:01]} 14. Be3 {[%clk 0:02:22]}  Nc5 {[%clk 0:01:58]} 15. Bd4 {[%clk 0:02:01]}  Qb6 {[%clk 0:01:35]} 16. Bxh8 {[%clk 0:01:55]}  Kxh8 {[%clk 0:01:34]} 17. Qd4+ {[%clk 0:01:51]}  f6 {[%clk 0:01:33]} 18. Rb1 {[%clk 0:01:46]}  Qb4 {[%clk 0:01:27]} 19. Kf1 {[%clk 0:01:31]}  Bd7 {[%clk 0:01:25]} 20. Bd1 {[%clk 0:01:14]}  Qb6 {[%clk 0:01:18]} 21. b3 {[%clk 0:01:09]}  Nxa4 {[%clk 0:01:15]} 22. Qd2 {[%clk 0:01:03]}  Nxc3 {[%clk 0:01:08]} 23. Qxc3 {[%clk 0:01:04]}  Qb4 {[%clk 0:01:08]} 24. Qd3 {[%clk 0:01:00]}  Qc5 {[%clk 0:01:05]} 25. Be2 {[%clk 0:00:58]}  Rfb8 {[%clk 0:00:58]} 26. g4 {[%clk 0:00:56]}  g5 {[%clk 0:00:54]} 27. Kg2 {[%clk 0:00:54]}  b5 {[%clk 0:00:53]} 28. Rhc1 {[%clk 0:00:50]}  bxc4 {[%clk 0:00:43]} 29. Rxc4 {[%clk 0:00:49]}  Qb6 {[%clk 0:00:43]} 30. dxc6 {[%clk 0:00:47]}  Bxc6 {[%clk 0:00:42]} 31. Rc3 {[%clk 0:00:39]}  Be8 {[%clk 0:00:34]} 32. Qc2 {[%clk 0:00:36]}  a4 {[%clk 0:00:32]} 33. b4 {[%clk 0:00:35]}  Bg6 {[%clk 0:00:31]} 34. Bd3 {[%clk 0:00:35]}  a3 {[%clk 0:00:30]} 35. Rc1 {[%clk 0:00:34]}  Qb7 {[%clk 0:00:24]} 36. Rc7 {[%clk 0:00:32]}  Qxb4 {[%clk 0:00:23]} 37. Rc8+ {[%clk 0:00:30]}  Be8 {[%clk 0:00:20]} 38. Rxb8 {[%clk 0:00:26]}  Qxb8 {[%clk 0:00:20]} 39. Bc4 {[%clk 0:00:21]}  Qc7 {[%clk 0:00:19]} 40. Qd2 {[%clk 0:00:18]}  Rc8 {[%clk 0:00:17]} 41. Qd5 {[%clk 0:00:18]}  Bg6 {[%clk 0:00:17]} 42. Rb1 {[%clk 0:00:15]}  Qd8 {[%clk 0:00:13]} 43. Rb7 {[%clk 0:00:13]}  Rb8 {[%clk 0:00:13]} 44. Ra7 {[%clk 0:00:12]}  Qf8 {[%clk 0:00:11]} 45. Rxa3 {[%clk 0:00:11]}  Qxh6 {[%clk 0:00:11]} 46. Ra7 {[%clk 0:00:09]}  Qf8 {[%clk 0:00:11]} 47. Qe6 {[%clk 0:00:09]}  Re8 {[%clk 0:00:11]} 48. Bb5 {[%clk 0:00:09]}  Rb8 {[%clk 0:00:11]} 49. Bc4 {[%clk 0:00:08]}  Re8 {[%clk 0:00:11]} 50. Bb5 {[%clk 0:00:08]}  Bf7 {[%clk 0:00:11]} 51. Qd7 {[%clk 0:00:07]}  Rb8 {[%clk 0:00:11]} 52. Bc6 {[%clk 0:00:07]}  Bg6 {[%clk 0:00:10]} 53. Qxe7 {[%clk 0:00:07]}  Qxe7 {[%clk 0:00:11]} 54. Rxe7 {[%clk 0:00:08]}  Rc8 {[%clk 0:00:11]} 55. Bd5 {[%clk 0:00:08]}  Rd8 {[%clk 0:00:11]} 56. Re6 {[%clk 0:00:07]}  Kg7 {[%clk 0:00:11]} 57. Re7+ {[%clk 0:00:08]}  Kf8 {[%clk 0:00:12]} 58. Re6 {[%clk 0:00:08]}  Kg7 {[%clk 0:00:12]} 59. Re7+ {[%clk 0:00:09]}  Kf8 {[%clk 0:00:13]} 60. Re6 {[%clk 0:00:09]}  Rd7 {[%clk 0:00:13]} 61. Bc6 {[%clk 0:00:09]}  Re7 {[%clk 0:00:13]} 62. Rxf6+ {[%clk 0:00:09]}  Kg7 {[%clk 0:00:13]} 63. Rxd6 {[%clk 0:00:10]}  Bxe4+ {[%clk 0:00:14]} 64. Bxe4 {[%clk 0:00:10]}  Rxe4 {[%clk 0:00:15]} 65. f3 {[%clk 0:00:11]}  Re2+ {[%clk 0:00:15]} 66. Kg3 {[%clk 0:00:12]}  Re7 {[%clk 0:00:16]} 67. Rc6 {[%clk 0:00:12]}  h6 {[%clk 0:00:16]} 68. Rc5 {[%clk 0:00:12]}  Rf7 {[%clk 0:00:17]} 69. Rd5 {[%clk 0:00:12]} 1/2-1/2


[Site "https://www.chess.com"]

[Event "Titled Tuesday Blitz April 05 Early 2022"]
[White "Terletsky, Oleg"]
[Black "Dukic, Zachary"]
[WhiteFideId "14116774"]
[BlackFideId "2617188"]
[WhiteElo "2064"]
[BlackElo "2086"]
[Result "0-1"]
[Round "04"]
[TimeControl "180+1"]
[Date "2022.04.05"]
[WhiteClock "0:00:07"]
[BlackClock "0:00:21"]

1. e4 {[%clk 0:03:00]}  c6 {[%clk 0:02:59]} 2. d4 {[%clk 0:03:00]}  d5 {[%clk 0:03:00]} 3. Nc3 {[%clk 0:03:00]}  dxe4 {[%clk 0:03:00]} 4. Nxe4 {[%clk 0:03:01]}  Nf6 {[%clk 0:03:00]} 5. Nxf6+ {[%clk 0:03:01]}  exf6 {[%clk 0:03:01]} 6. c3 {[%clk 0:03:01]}  Bd6 {[%clk 0:03:02]} 7. Bd3 {[%clk 0:03:02]}  O-O {[%clk 0:03:02]} 8. Qc2 {[%clk 0:03:02]}  Re8+ {[%clk 0:03:02]} 9. Ne2 {[%clk 0:03:03]}  Nd7 {[%clk 0:03:03]} 10. Be3 {[%clk 0:03:03]}  h5 {[%clk 0:03:02]} 11. O-O-O {[%clk 0:03:02]}  Nf8 {[%clk 0:02:58]} 12. Kb1 {[%clk 0:03:00]}  Be6 {[%clk 0:02:55]} 13. Ng3 {[%clk 0:02:57]}  g6 {[%clk 0:02:52]} 14. Ne4 {[%clk 0:02:55]}  Kg7 {[%clk 0:02:37]} 15. Nxd6 {[%clk 0:02:50]}  Qxd6 {[%clk 0:02:38]} 16. c4 {[%clk 0:02:50]}  b5 {[%clk 0:02:32]} 17. c5 {[%clk 0:02:28]}  Qd5 {[%clk 0:02:30]} 18. b3 {[%clk 0:02:29]}  a5 {[%clk 0:02:21]} 19. Be4 {[%clk 0:02:14]}  Qd7 {[%clk 0:02:21]} 20. d5 {[%clk 0:01:41]}  Bxd5 {[%clk 0:02:12]} 21. Bxd5 {[%clk 0:01:39]}  cxd5 {[%clk 0:02:13]} 22. Rd2 {[%clk 0:01:24]}  Qc6 {[%clk 0:01:55]} 23. Rhd1 {[%clk 0:01:18]}  Rad8 {[%clk 0:01:52]} 24. h3 {[%clk 0:01:04]}  Ne6 {[%clk 0:01:44]} 25. g4 {[%clk 0:01:04]}  h4 {[%clk 0:01:37]} 26. Qb2 {[%clk 0:00:51]}  Nxc5 {[%clk 0:00:59]} 27. Qc2 {[%clk 0:00:34]}  d4 {[%clk 0:00:29]} 28. Bxd4 {[%clk 0:00:29]}  Rxd4 {[%clk 0:00:26]} 29. Rxd4 {[%clk 0:00:28]}  Qb6 {[%clk 0:00:26]} 30. Rd6 {[%clk 0:00:25]}  Qa7 {[%clk 0:00:24]} 31. Qc3 {[%clk 0:00:22]}  Ne4 {[%clk 0:00:23]} 32. Qc6 {[%clk 0:00:16]}  Nxd6 {[%clk 0:00:22]} 33. Rxd6 {[%clk 0:00:13]}  Re1+ {[%clk 0:00:23]} 34. Kb2 {[%clk 0:00:13]}  Qxf2+ {[%clk 0:00:23]} 35. Ka3 {[%clk 0:00:13]}  b4+ {[%clk 0:00:20]} 36. Ka4 {[%clk 0:00:13]}  Qxa2+ {[%clk 0:00:21]} 37. Kb5 {[%clk 0:00:14]}  Qxb3 {[%clk 0:00:20]} 38. Rxf6 {[%clk 0:00:09]}  Re5+ {[%clk 0:00:20]} 39. Ka6 {[%clk 0:00:08]}  Re6 {[%clk 0:00:20]} 40. Rxe6 {[%clk 0:00:07]}  Qxe6 {[%clk 0:00:21]} 0-1


[Site "https://www.chess.com"]

[Event "Titled Tuesday Blitz April 05 Early 2022"]
[White "Tsyhanchuk, Stanislav"]
[Black "Mickiewicz, Piotr"]
[WhiteFideId "13505130"]
[BlackFideId "1114891"]
[WhiteElo "2078"]
[BlackElo "2266"]
[Result "1-0"]
[Round "04"]
[TimeControl "180+1"]
[Date "2022.04.05"]
[WhiteClock "0:00:22"]
[BlackClock "0:00:23"]

1. d4 {[%clk 0:03:00]}  e6 {[%clk 0:02:58]} 2. c4 {[%clk 0:03:01]}  Nf6 {[%clk 0:02:58]} 3. Nc3 {[%clk 0:03:02]}  c5 {[%clk 0:02:47]} 4. d5 {[%clk 0:03:01]}  exd5 {[%clk 0:02:47]} 5. cxd5 {[%clk 0:03:02]}  d6 {[%clk 0:02:47]} 6. e4 {[%clk 0:03:02]}  a6 {[%clk 0:02:48]} 7. Bd3 {[%clk 0:02:59]}  g6 {[%clk 0:02:47]} 8. h3 {[%clk 0:03:00]}  Bg7 {[%clk 0:02:47]} 9. Nf3 {[%clk 0:03:00]}  O-O {[%clk 0:02:43]} 10. O-O {[%clk 0:03:01]}  b5 {[%clk 0:02:42]} 11. Bf4 {[%clk 0:03:01]}  Re8 {[%clk 0:02:30]} 12. Re1 {[%clk 0:03:01]}  b4 {[%clk 0:02:19]} 13. Na4 {[%clk 0:03:00]}  Nh5 {[%clk 0:02:08]} 14. Bh2 {[%clk 0:02:58]}  Bd7 {[%clk 0:01:58]} 15. Bxd6 {[%clk 0:02:52]}  Bxa4 {[%clk 0:01:54]} 16. Qxa4 {[%clk 0:02:53]}  Bxb2 {[%clk 0:01:50]} 17. Rab1 {[%clk 0:02:41]}  Bc3 {[%clk 0:01:50]} 18. Red1 {[%clk 0:02:31]}  Nd7 {[%clk 0:01:49]} 19. a3 {[%clk 0:02:20]}  Nb6 {[%clk 0:01:48]} 20. Qc6 {[%clk 0:02:09]}  Rc8 {[%clk 0:01:47]} 21. Bxa6 {[%clk 0:01:52]}  Rxc6 {[%clk 0:01:38]} 22. dxc6 {[%clk 0:01:53]}  Qa8 {[%clk 0:01:35]} 23. Bb7 {[%clk 0:01:50]}  Qxa3 {[%clk 0:01:35]} 24. Bxc5 {[%clk 0:01:48]}  Na4 {[%clk 0:01:28]} 25. c7 {[%clk 0:01:38]}  Kg7 {[%clk 0:00:53]} 26. Rd8 {[%clk 0:01:31]}  Nxc5 {[%clk 0:00:47]} 27. Rxe8 {[%clk 0:01:29]}  Qa2 {[%clk 0:00:39]} 28. Rd1 {[%clk 0:01:10]}  Qe2 {[%clk 0:00:37]} 29. Rdd8 {[%clk 0:00:55]}  Nxb7 {[%clk 0:00:34]} 30. c8=Q {[%clk 0:00:48]}  Nxd8 {[%clk 0:00:33]} 31. Qxd8 {[%clk 0:00:44]}  Nf6 {[%clk 0:00:28]} 32. Rh8 {[%clk 0:00:38]}  Nxe4 {[%clk 0:00:26]} 33. Rg8+ {[%clk 0:00:22]}  Kh6 {[%clk 0:00:24]} 34. Qf8+ {[%clk 0:00:22]}  Kh5 {[%clk 0:00:23]} 35. g4# {[%clk 0:00:22]} 1-0


[Site "https://www.chess.com"]

[Event "Titled Tuesday Blitz April 05 Early 2022"]
[White "Van den Dikkenberg, Erik"]
[Black "Miszler, Levente"]
[WhiteFideId "1005880"]
[BlackFideId "763276"]
[WhiteElo "2118"]
[BlackElo "1966"]
[Result "0-1"]
[Round "04"]
[TimeControl "180+1"]
[Date "2022.04.05"]
[WhiteClock "0:00:28"]
[BlackClock "0:01:01"]

1. e4 {[%clk 0:02:59]}  e6 {[%clk 0:03:00]} 2. d4 {[%clk 0:02:58]}  d5 {[%clk 0:03:00]} 3. e5 {[%clk 0:02:58]}  c5 {[%clk 0:03:00]} 4. c3 {[%clk 0:02:59]}  Nc6 {[%clk 0:03:00]} 5. Nf3 {[%clk 0:02:59]}  Bd7 {[%clk 0:03:00]} 6. Bd3 {[%clk 0:02:58]}  cxd4 {[%clk 0:02:59]} 7. cxd4 {[%clk 0:02:58]}  Qb6 {[%clk 0:02:55]} 8. O-O {[%clk 0:02:57]}  f5 {[%clk 0:02:32]} 9. exf6 {[%clk 0:02:52]}  Nxf6 {[%clk 0:02:31]} 10. Nc3 {[%clk 0:02:51]}  Bd6 {[%clk 0:02:30]} 11. Na4 {[%clk 0:02:45]}  Qc7 {[%clk 0:02:29]} 12. Nc5 {[%clk 0:02:44]}  O-O {[%clk 0:02:25]} 13. Re1 {[%clk 0:02:42]}  Rae8 {[%clk 0:02:22]} 14. Qe2 {[%clk 0:02:40]}  Ng4 {[%clk 0:02:19]} 15. h3 {[%clk 0:02:33]}  Nxd4 {[%clk 0:02:03]} 16. Nxd4 {[%clk 0:02:28]}  Bh2+ {[%clk 0:01:53]} 17. Kh1 {[%clk 0:02:24]}  Nxf2+ {[%clk 0:01:51]} 18. Qxf2 {[%clk 0:02:22]}  Rxf2 {[%clk 0:01:51]} 19. Nxd7 {[%clk 0:01:58]}  Qg3 {[%clk 0:01:36]} 20. Bf1 {[%clk 0:01:57]}  Rf7 {[%clk 0:01:22]} 21. Bd2 {[%clk 0:01:24]}  Rxd7 {[%clk 0:01:21]} 22. Nxe6 {[%clk 0:01:11]}  Rde7 {[%clk 0:01:17]} 23. Bf4 {[%clk 0:01:11]}  Qxf4 {[%clk 0:01:11]} 24. Nxf4 {[%clk 0:01:10]}  Rxe1 {[%clk 0:01:12]} 25. Rxe1 {[%clk 0:01:05]}  Rxe1 {[%clk 0:01:13]} 26. Kxh2 {[%clk 0:00:48]}  Rxf1 {[%clk 0:01:13]} 27. Nxd5 {[%clk 0:00:48]}  Rf2 {[%clk 0:01:13]} 28. Ne7+ {[%clk 0:00:43]}  Kf7 {[%clk 0:01:12]} 29. Nc8 {[%clk 0:00:43]}  Rxb2 {[%clk 0:01:09]} 30. Nxa7 {[%clk 0:00:43]}  Rxa2 {[%clk 0:01:09]} 31. Nb5 {[%clk 0:00:43]}  Rb2 {[%clk 0:01:08]} 32. Nd6+ {[%clk 0:00:42]}  Ke6 {[%clk 0:01:07]} 33. Nc4 {[%clk 0:00:42]}  Rb4 {[%clk 0:01:04]} 34. Ne3 {[%clk 0:00:36]}  b5 {[%clk 0:01:03]} 35. Kg1 {[%clk 0:00:32]}  Rb1+ {[%clk 0:01:02]} 36. Kf2 {[%clk 0:00:33]}  b4 {[%clk 0:01:02]} 37. Kf3 {[%clk 0:00:28]}  b3 {[%clk 0:01:01]} 0-1


[Site "https://www.chess.com"]